fUST/lending_fUST_20250526
["ID","MTS","AMOUNT","RATE_DAILY","PERIOD"]
[362382210,1748237442236,-430.0,0.00019178,2]
[362382211,1748237442245,-430.0,0.00019178,2]
[362382212,1748237442255,-430.0,0.00019178,2]
[362382213,1748237442265,-430.0,0.00019178,2]
[362382214,1748237442274,-430.0,0.00019178,2]
[362382215,1748237442283,-430.0,0.00019178,2]
[362382216,1748237442293,-430.0,0.00019178,2]
[362382217,1748237442303,-430.0,0.00019178,2]
[362382218,1748237442312,-430.0,0.00019178,2]
[362382219,1748237442322,-430.0,0.00019178,2]
[362382220,1748237442331,-430.0,0.00019178,2]
[362382221,1748237442341,-430.0,0.00019178,2]
[362382222,1748237442351,-402.47027024,0.00019178,2]
[362382223,1748237442360,-430.0,0.00019178,2]
[362382224,1748237442374,-430.0,0.00019178,2]
[362382225,1748237442384,-430.0,0.00019178,2]
[362382226,1748237442393,-430.0,0.00019178,2]
[362382227,1748237442403,-430.0,0.00019178,2]
[362382228,1748237442623,-430.0,0.00019178,2]
[362382229,1748237442633,-430.0,0.00019178,2]
[362382230,1748237442643,-430.0,0.00019178,2]
[362382231,1748237442652,-525.82,0.00019178,2]
[362382232,1748237442662,-430.0,0.00019178,2]
[362382233,1748237442672,-430.0,0.00019178,2]
[362382234,1748237442681,-189.391517,0.00019178,2]
[362382235,1748237442691,-449.02248254,0.00019178,2]
[362382236,1748237442701,-430.0,0.00019178,2]
[362382237,1748237442711,-430.0,0.00019178,2]
[362382238,1748237442721,-430.0,0.00019178,2]
[362382239,1748237442731,-430.0,0.00019178,2]
[362382240,1748237442741,-430.0,0.00019178,2]
[362382241,1748237442750,-430.0,0.00019178,2]
[362382242,1748237442760,-430.0,0.00019178,2]
[362382243,1748237442770,-430.0,0.00019178,2]
[362382244,1748237442780,-321.7433241,0.00019178,2]
[362382245,1748237442791,-430.0,0.00019178,2]
[362382246,1748237442801,-430.0,0.00019178,2]
[362382247,1748237442811,-430.0,0.00019178,2]
[362382248,1748237442823,-491.50156698,0.00019178,2]
[362382249,1748237442835,-430.0,0.00019178,2]
[362382250,1748237442847,-261.29841045,0.00019178,2]
[362382251,1748237442858,-430.0,0.00019178,2]
[362382252,1748237442869,-430.0,0.00019178,2]
[362382253,1748237442878,-906.96,0.00019178,2]
[362382254,1748237442888,-164.47873093,0.00019178,2]
[362382255,1748237442899,-970.85,0.00019178,2]
[362382256,1748237442909,-430.0,0.00019178,2]
[362382257,1748237442919,-430.0,0.00019178,2]
[362382258,1748237442931,-426.43568627,0.00019178,2]
[362382259,1748237442943,-430.0,0.00019178,2]
[362382260,1748237442954,-430.0,0.00019178,2]
[362382261,1748237442965,-430.0,0.00019178,2]
[362382262,1748237442980,-430.0,0.00019178,2]
[362382263,1748237442993,-430.0,0.00019178,2]
[362382264,1748237443003,-430.0,0.00019178,2]
[362382265,1748237443015,-430.0,0.00019178,2]
[362382266,1748237443027,-430.0,0.00019178,2]
[362382267,1748237443038,-430.0,0.00019178,2]
[362382268,1748237443051,-430.0,0.00019178,2]
[362382269,1748237443061,-703.67,0.00019178,2]
[362382270,1748237443070,-430.0,0.00019178,2]
[362382271,1748237443079,-430.0,0.00019178,2]
[362382272,1748237443088,-430.0,0.00019178,2]
[362382273,1748237443098,-1813.92,0.00019178,2]
[362382274,1748237443107,-430.0,0.00019178,2]
[362382275,1748237443116,-430.0,0.00019178,2]
[362382276,1748237443126,-430.0,0.00019178,2]
[362382277,1748237443135,-430.0,0.00019178,2]
[362382278,1748237443145,-430.0,0.00019178,2]
[362382279,1748237443154,-430.0,0.00019178,2]
[362382280,1748237443164,-430.0,0.00019178,2]
[362382281,1748237443174,-430.0,0.00019178,2]
[362382282,1748237443183,-430.0,0.00019178,2]
[362382283,1748237443194,-2478.43,0.00019178,2]
[362382284,1748237443204,-430.0,0.00019178,2]
[362382285,1748237443213,-430.0,0.00019178,2]
[362382286,1748237443222,-430.0,0.00019178,2]
[362382287,1748237443232,-430.0,0.00019178,2]
[362382288,1748237443241,-151.0,0.00019178,2]
[362382289,1748237443251,-151.0,0.00019178,2]
[362382290,1748237443262,-535.29,0.00019178,2]
[362382291,1748237443271,-296.0,0.00019178,2]
[362382292,1748237443281,-430.0,0.00019178,2]
[362382293,1748237443291,-1876.3,0.00019178,2]
[362382295,1748237443301,-430.0,0.00019178,2]
[362382296,1748237443311,-430.0,0.00019178,2]
[362382297,1748237443320,-430.0,0.00019178,2]
[362382298,1748237443330,-430.0,0.00019178,2]
[362382299,1748237443339,-630.88,0.00019178,2]
[362382300,1748237443348,-430.0,0.00019178,2]
[362382301,1748237443358,-430.0,0.00019178,2]
[362382302,1748237443368,-430.0,0.00019178,2]
[362382303,1748237443377,-448.85,0.00019178,2]
[362382304,1748237443386,-430.0,0.00019178,2]
[362382305,1748237443396,-430.0,0.00019178,2]
[362382306,1748237443405,-430.0,0.00019178,2]
[362382307,1748237443415,-430.0,0.00019178,2]
[362382308,1748237443424,-450.0,0.00019178,2]
[362382309,1748237443433,-458.27877688,0.00019178,2]
[362382310,1748237443442,-450.0,0.00019178,2]
[362382311,1748237443452,-430.0,0.00019178,2]
[362382312,1748237443461,-430.0,0.00019178,2]
[362382313,1748237443471,-876.58,0.00019178,2]
[362382314,1748237443481,-430.0,0.00019178,2]
[362382316,1748237443490,-430.0,0.00019178,2]
[362382318,1748237443500,-794.35,0.00019178,2]
[362382319,1748237443509,-430.0,0.00019178,2]
[362382320,1748237443519,-584.38,0.00019178,2]
[362382321,1748237443529,-151.0,0.00019178,2]
[362382322,1748237443539,-151.0,0.00019178,2]
[362382323,1748237443550,-151.0,0.00019178,2]
[362382324,1748237443560,-430.0,0.00019178,2]
[362382325,1748237443569,-500.0,0.00019178,2]
[362382326,1748237443579,-500.0,0.00019178,2]
[362382327,1748237443590,-500.0,0.00019178,2]
[362382328,1748237443599,-500.0,0.00019178,2]
[362382329,1748237443611,-500.0,0.00019178,2]
[362382330,1748237443620,-500.0,0.00019178,2]
[362382331,1748237443629,-500.0,0.00019178,2]
[362382332,1748237443639,-500.0,0.00019178,2]
[362382333,1748237443648,-500.0,0.00019178,2]
[362382334,1748237443658,-500.0,0.00019178,2]
[362382335,1748237443667,-151.0,0.00019178,2]
[362382336,1748237443677,-183.038958,0.00019178,2]
[362382337,1748237443686,-500.0,0.00019182,2]
[362382338,1748237443695,-503.55857605,0.00019211,2]
[362382339,1748237443705,-500.0,0.00019211,2]
[362382340,1748237443714,-156.22453145,0.00019249,2]
[362382341,1748237443724,-3357.0,0.000193,2]
[362382342,1748237443733,-511.15782647,0.00019303,2]
[362382343,1748237443743,-502.58274743,0.00019304,2]
[362382344,1748237443752,-500.0,0.0001935,2]
[362382345,1748237443762,-1000.0,0.00019355,2]
[362382346,1748237443771,-503.4777351,0.00019355,2]
[362382347,1748237443781,-1000.0,0.00019355,2]
[362382348,1748237443790,-504.90777477,0.00019355,2]
[362382349,1748237443799,-163.321156,0.0001936,2]
[362382350,1748237443809,-233.194276,0.0001936,2]
[362382351,1748237443819,-151.0,0.0001936,2]
[362382352,1748237443828,-379.00808083,0.00019383,2]
[362382355,1748237443837,-516.6960165,0.0001942,2]
[362382356,1748237443846,-556.0389605,0.00019452,2]
[362382357,1748237443855,-430.0,0.00019452,2]
[362382358,1748237443865,-430.0,0.00019452,2]
[362382359,1748237443874,-430.0,0.00019452,2]
[362382360,1748237443884,-430.0,0.00019452,2]
[362382361,1748237443893,-578.64,0.00019452,2]
[362382362,1748237443903,-430.0,0.00019452,2]
[362382363,1748237443912,-430.0,0.00019452,2]
[362382364,1748237443922,-430.0,0.00019452,2]
[362382365,1748237443932,-430.0,0.00019452,2]
[362382366,1748237443941,-430.0,0.00019452,2]
[362382367,1748237443951,-455.35967499,0.00019452,2]
[362382368,1748237443961,-423.0,0.00019452,2]
[362382369,1748237443974,-430.0,0.00019452,2]
[362382370,1748237443984,-384.24374694,0.00019452,2]
[362382371,1748237443995,-430.0,0.00019452,2]
[362382372,1748237444006,-151.0,0.00019452,2]
[362382373,1748237444020,-151.0,0.00019452,2]
[362382374,1748237444031,-439.04489547,0.00019452,2]
[362382375,1748237444042,-430.0,0.00019452,2]
[362382376,1748237444059,-430.0,0.00019452,2]
[362382377,1748237444070,-430.0,0.00019452,2]
[362382378,1748237444082,-430.0,0.00019452,2]
[362382379,1748237444105,-259.62455491,0.00019452,2]
[362382380,1748237444115,-430.0,0.00019452,2]
[362382381,1748237444126,-430.0,0.00019452,2]
[362382382,1748237444136,-430.0,0.00019452,2]
[362382383,1748237444146,-430.0,0.00019452,2]
[362382384,1748237444157,-430.0,0.00019452,2]
[362382385,1748237444168,-430.0,0.00019452,2]
[362382386,1748237444178,-430.0,0.00019452,2]
[362382387,1748237444190,-450.0,0.00019452,2]
[362382388,1748237444201,-430.0,0.00019452,2]
[362382389,1748237444212,-430.0,0.00019452,2]
[362382390,1748237444223,-544.37916764,0.00019452,2]
[362382391,1748237444233,-430.0,0.00019452,2]
[362382392,1748237444243,-430.0,0.00019452,2]
[362382393,1748237444252,-430.0,0.00019452,2]
[362382394,1748237444262,-430.0,0.00019452,2]
[362382395,1748237444271,-430.0,0.00019452,2]
[362382396,1748237444281,-430.0,0.00019452,2]
[362382397,1748237444290,-316.36229669,0.00019452,2]
[362382398,1748237444300,-430.0,0.00019452,2]
[362382399,1748237444309,-423.32087059,0.00019452,2]
[362382400,1748237444318,-430.0,0.00019452,2]
[362382401,1748237444328,-430.0,0.00019452,2]
[362382402,1748237444490,-153.172401,0.00019452,2]
[362382403,1748237444500,-430.0,0.00019452,2]
[362382404,1748237444511,-430.0,0.00019452,2]
[362382405,1748237444520,-430.0,0.00019452,2]
[362382406,1748237444530,-430.0,0.00019452,2]
[362382407,1748237444540,-188.0,0.00019452,2]
[362382408,1748237444550,-163.800472,0.00019452,2]
[362382409,1748237444560,-430.0,0.00019452,2]
[362382410,1748237444570,-450.0,0.00019452,2]
[362382411,1748237444580,-450.0,0.00019452,2]
[362382412,1748237444590,-151.0,0.00019452,2]
[362382413,1748237444599,-430.0,0.00019452,2]
[362382414,1748237444610,-430.0,0.00019452,2]
[362382415,1748237444619,-430.0,0.00019452,2]
[362382416,1748237444630,-430.0,0.00019452,2]
[362382417,1748237444640,-430.0,0.00019452,2]
[362382418,1748237444650,-430.0,0.00019452,2]
[362382419,1748237444660,-431.19702223,0.00019452,2]
[362382420,1748237444670,-151.0,0.00019452,2]
[362382421,1748237444679,-151.0,0.00019452,2]
[362382422,1748237444688,-151.0,0.00019452,2]
[362382423,1748237444698,-151.0,0.00019452,2]
[362382424,1748237444708,-430.0,0.00019452,2]
[362382425,1748237444718,-500.0,0.00019452,2]
[362382426,1748237444727,-450.0,0.00019452,2]
[362382427,1748237444737,-450.0,0.00019452,2]
[362382428,1748237444747,-430.0,0.00019452,2]
[362382429,1748237444757,-430.0,0.00019452,2]
[362382430,1748237444767,-430.0,0.00019452,2]
[362382431,1748237444779,-430.0,0.00019452,2]
[362382432,1748237444789,-430.0,0.00019452,2]
[362382433,1748237444801,-430.0,0.00019452,2]
[362382434,1748237444811,-430.0,0.00019452,2]
[362382435,1748237444821,-430.0,0.00019452,2]
[362382436,1748237444831,-430.0,0.00019452,2]
[362382437,1748237444842,-430.0,0.00019452,2]
[362382438,1748237444853,-430.0,0.00019452,2]
[362382439,1748237444862,-425.0,0.00019452,2]
[362382440,1748237444872,-430.0,0.00019452,2]
[362382441,1748237444881,-430.0,0.00019452,2]
[362382442,1748237444892,-430.0,0.00019452,2]
[362382443,1748237444902,-430.0,0.00019452,2]
[362382444,1748237444911,-430.0,0.00019452,2]
[362382445,1748237444921,-430.0,0.00019452,2]
[362382446,1748237444931,-430.0,0.00019452,2]
[362382447,1748237444942,-430.0,0.00019452,2]
[362382448,1748237444951,-430.0,0.00019452,2]
[362382449,1748237444962,-430.0,0.00019452,2]
[362382450,1748237444976,-430.0,0.00019452,2]
[362382451,1748237444986,-441.23512057,0.00019452,2]
[362382452,1748237444997,-430.0,0.00019452,2]
[362382453,1748237445007,-430.0,0.00019452,2]
[362382454,1748237445018,-430.0,0.00019452,2]
[362382455,1748237445028,-430.0,0.00019452,2]
[362382456,1748237445037,-430.0,0.00019452,2]
[362382457,1748237445048,-906.96,0.00019452,2]
[362382458,1748237445058,-970.85,0.00019452,2]
[362382459,1748237445069,-430.0,0.00019452,2]
[362382460,1748237445079,-430.0,0.00019452,2]
[362382461,1748237445089,-430.0,0.00019452,2]
[362382462,1748237445098,-430.0,0.00019452,2]
[362382463,1748237445108,-430.0,0.00019452,2]
[362382464,1748237445118,-430.0,0.00019452,2]
[362382465,1748237445129,-430.0,0.00019452,2]
[362382466,1748237445140,-307.57904775,0.00019452,2]
[362382467,1748237445150,-430.0,0.00019452,2]
[362382468,1748237445160,-703.67,0.00019452,2]
[362382469,1748237445170,-430.0,0.00019452,2]
[362382470,1748237445179,-430.0,0.00019452,2]
[362382471,1748237445190,-430.0,0.00019452,2]
[362382472,1748237445200,-1813.92,0.00019452,2]
[362382473,1748237445210,-430.0,0.00019452,2]
[362382474,1748237445220,-430.0,0.00019452,2]
[362382475,1748237445230,-430.0,0.00019452,2]
[362382476,1748237445240,-430.0,0.00019452,2]
[362382477,1748237445249,-430.0,0.00019452,2]
[362382478,1748237445259,-430.0,0.00019452,2]
[362382479,1748237445269,-2478.43,0.00019452,2]
[362382480,1748237445278,-430.0,0.00019452,2]
[362382481,1748237445288,-259.18,0.00019452,2]
[362382482,1748237445298,-430.0,0.00019452,2]
[362382483,1748237445308,-430.0,0.00019452,2]
[362382484,1748237445319,-535.29,0.00019452,2]
[362382485,1748237445329,-430.0,0.00019452,2]
[362382486,1748237445339,-1876.3,0.00019452,2]
[362382487,1748237445348,-430.0,0.00019452,2]
[362382488,1748237445360,-430.0,0.00019452,2]
[362382489,1748237445371,-430.0,0.00019452,2]
[362382490,1748237445381,-430.0,0.00019452,2]
[362382491,1748237445391,-630.88,0.00019452,2]
[362382492,1748237445400,-430.0,0.00019452,2]
[362382493,1748237445411,-430.0,0.00019452,2]
[362382494,1748237445420,-430.0,0.00019452,2]
[362382495,1748237445431,-448.85,0.00019452,2]
[362382496,1748237445441,-430.0,0.00019452,2]
[362382497,1748237445451,-430.0,0.00019452,2]
[362382498,1748237445462,-430.0,0.00019452,2]
[362382499,1748237445472,-430.0,0.00019452,2]
[362382500,1748237445482,-430.0,0.00019452,2]
[362382501,1748237445491,-430.0,0.00019452,2]
[362382502,1748237445500,-191.76351059,0.00019452,2]
[362382503,1748237445552,-684.81648941,0.00019452,2]
[362382504,1748237445562,-419.49393828,0.00019452,2]
[362382505,1748237445572,-794.35,0.00019452,2]
[362382506,1748237445582,-430.0,0.00019452,2]
[362382507,1748237445592,-584.38,0.00019452,2]
[362382508,1748237445602,-151.0,0.00019452,2]
[362382509,1748237445612,-430.0,0.00019452,2]
[362382510,1748237445622,-1000.0,0.0001949,2]
[362382511,1748237445631,-151.0,0.00019508,2]
[362382512,1748237445641,-151.0,0.00019508,2]
[362382513,1748237445651,-151.0,0.00019508,2]
[362382514,1748237445661,-151.0,0.00019508,2]
[362382515,1748237445671,-151.0,0.00019508,2]
[362382516,1748237445681,-160.0,0.00019615,2]
[362382517,1748237445691,-314.67999324,0.00019615,2]
[362382518,1748237445701,-894.64583333,0.00019615,2]
[362382519,1748237445711,-12654.40314616,0.00019615,2]
[362382520,1748237445721,-160.0,0.00019626,2]
[362382521,1748237445730,-160.0,0.00019645,2]
[362382522,1748237445740,-160.0,0.00019645,2]
[362382523,1748237445749,-160.0,0.00019645,2]
[362382524,1748237445759,-229.15402412,0.00019645,2]
[362382525,1748237445769,-423.08503179,0.00019645,2]
[362382526,1748237445778,-212.59253735,0.00019645,2]
[362382527,1748237445789,-160.0,0.00019645,2]
[362382528,1748237445799,-160.0,0.00019645,2]
[362382529,1748237445809,-379.00808083,0.00019659,2]
[362382530,1748237445819,-516.50162892,0.0001969,2]
[362382531,1748237445828,-1000.0,0.0001969,2]
[362382532,1748237445838,-1005.55213309,0.0001969,2]
[362382533,1748237445847,-502.80113086,0.00019697,2]
[362382534,1748237445856,-1000.0,0.00019697,2]
[362382535,1748237445865,-1000.0,0.00019697,2]
[362382536,1748237445875,-1000.0,0.00019713,2]
[362382537,1748237445885,-163.66430381,0.00019726,2]
[362382538,1748237445895,-430.0,0.00019726,2]
[362382539,1748237445904,-430.0,0.00019726,2]
[362382540,1748237445913,-490.28279081,0.00019726,2]
[362382541,1748237445923,-430.0,0.00019726,2]
[362382542,1748237445932,-454.6245895,0.00019726,2]
[362382543,1748237445942,-430.0,0.00019726,2]
[362382544,1748237445951,-430.0,0.00019726,2]
[362382545,1748237445961,-430.0,0.00019726,2]
[362382546,1748237445974,-430.0,0.00019726,2]
[362382547,1748237445983,-151.0,0.00019726,2]
[362382548,1748237445993,-430.0,0.00019726,2]
[362382549,1748237446003,-167.09984329,0.00019726,2]
[362382550,1748237446013,-430.0,0.00019726,2]
[362382551,1748237446022,-237.08283724,0.00019726,2]
[362382552,1748237446031,-430.0,0.00019726,2]
[362382553,1748237446041,-430.0,0.00019726,2]
[362382554,1748237446053,-430.0,0.00019726,2]
[362382556,1748237446063,-179.29771237,0.00019726,2]
[362382557,1748237446073,-430.0,0.00019726,2]
[362382558,1748237446082,-430.0,0.00019726,2]
[362382559,1748237446092,-430.0,0.00019726,2]
[362382560,1748237446101,-430.0,0.00019726,2]
[362382561,1748237446111,-430.0,0.00019726,2]
[362382562,1748237446120,-430.0,0.00019726,2]
[362382563,1748237446129,-430.0,0.00019726,2]
[362382564,1748237446140,-430.0,0.00019726,2]
[362382565,1748237446149,-430.0,0.00019726,2]
[362382566,1748237446158,-430.0,0.00019726,2]
[362382567,1748237446168,-430.0,0.00019726,2]
[362382569,1748237446178,-430.0,0.00019726,2]
[362382571,1748237446187,-430.0,0.00019726,2]
[362382572,1748237446196,-188.0,0.00019726,2]
[362382573,1748237446206,-430.0,0.00019726,2]
[362382574,1748237446215,-151.0,0.00019726,2]
[362382575,1748237446224,-430.0,0.00019726,2]
[362382576,1748237446233,-450.0,0.00019726,2]
[362382578,1748237446242,-430.0,0.00019726,2]
[362382580,1748237446252,-430.0,0.00019726,2]
[362382582,1748237446261,-430.0,0.00019726,2]
[362382584,1748237446270,-151.0,0.00019726,2]
[362382585,1748237446280,-246.304664,0.00019726,2]
[362382587,1748237446289,-500.0,0.00019726,2]
[362382589,1748237446300,-430.0,0.00019726,2]
[362382590,1748237446309,-430.0,0.00019726,2]
[362382592,1748237446321,-430.0,0.00019726,2]
[362382593,1748237446331,-430.0,0.00019726,2]
[362382594,1748237446340,-430.0,0.00019726,2]
[362382595,1748237446350,-430.0,0.00019726,2]
[362382596,1748237446359,-430.0,0.00019726,2]
[362382598,1748237446369,-430.0,0.00019726,2]
[362382600,1748237446378,-430.0,0.00019726,2]
[362382602,1748237446388,-430.0,0.00019726,2]
[362382604,1748237446398,-439.64719023,0.00019726,2]
[362382606,1748237446407,-430.0,0.00019726,2]
[362382608,1748237446416,-430.0,0.00019726,2]
[362382609,1748237446426,-430.0,0.00019726,2]
[362382610,1748237446436,-430.0,0.00019726,2]
[362382612,1748237446445,-430.0,0.00019726,2]
[362382614,1748237446455,-430.0,0.00019726,2]
[362382616,1748237446465,-430.0,0.00019726,2]
[362382618,1748237446473,-430.0,0.00019726,2]
[362382619,1748237446483,-430.0,0.00019726,2]
[362382621,1748237446493,-430.0,0.00019726,2]
[362382622,1748237446503,-430.0,0.00019726,2]
[362382623,1748237446513,-430.0,0.00019726,2]
[362382624,1748237446522,-430.0,0.00019726,2]
[362382625,1748237446531,-430.0,0.00019726,2]
[362382626,1748237446542,-906.96,0.00019726,2]
[362382627,1748237446552,-970.85,0.00019726,2]
[362382628,1748237446562,-430.0,0.00019726,2]
[362382629,1748237446572,-430.0,0.00019726,2]
[362382630,1748237446582,-430.0,0.00019726,2]
[362382631,1748237446592,-430.0,0.00019726,2]
[362382632,1748237446601,-430.0,0.00019726,2]
[362382634,1748237446612,-430.0,0.00019726,2]
[362382635,1748237446621,-703.67,0.00019726,2]
[362382636,1748237446631,-430.0,0.00019726,2]
[362382637,1748237446640,-430.0,0.00019726,2]
[362382638,1748237446650,-1813.92,0.00019726,2]
[362382639,1748237446659,-430.0,0.00019726,2]
[362382641,1748237446668,-430.0,0.00019726,2]
[362382642,1748237446678,-430.0,0.00019726,2]
[362382643,1748237446688,-430.0,0.00019726,2]
[362382644,1748237446698,-430.0,0.00019726,2]
[362382645,1748237446708,-2478.43,0.00019726,2]
[362382646,1748237446718,-430.0,0.00019726,2]
[362382647,1748237446727,-430.0,0.00019726,2]
[362382648,1748237446737,-430.0,0.00019726,2]
[362382649,1748237446746,-535.29,0.00019726,2]
[362382650,1748237446756,-430.0,0.00019726,2]
[362382651,1748237446766,-1876.3,0.00019726,2]
[362382652,1748237446776,-430.0,0.00019726,2]
[362382653,1748237446785,-430.0,0.00019726,2]
[362382654,1748237446795,-415.84124714,0.00019726,2]
[362382655,1748237446806,-630.88,0.00019726,2]
[362382656,1748237446815,-430.0,0.00019726,2]
[362382657,1748237446825,-430.0,0.00019726,2]
[362382658,1748237446834,-430.0,0.00019726,2]
[362382659,1748237446844,-448.85,0.00019726,2]
[362382661,1748237446854,-430.0,0.00019726,2]
[362382662,1748237446863,-430.0,0.00019726,2]
[362382663,1748237446872,-430.0,0.00019726,2]
[362382664,1748237446881,-430.0,0.00019726,2]
[362382665,1748237446891,-430.0,0.00019726,2]
[362382666,1748237446901,-876.58,0.00019726,2]
[362382667,1748237446910,-794.35,0.00019726,2]
[362382668,1748237446920,-425.01,0.00019726,2]
[362382669,1748237446929,-584.38,0.00019726,2]
[362382670,1748237446940,-151.0,0.00019726,2]
[362382671,1748237446949,-481.56516768,0.0001973,2]
[362382672,1748237446959,-1000.0,0.00019759,2]
[362382673,1748237447081,-83794.88241273,0.000198,2]
[362382674,1748237447092,-223.0315306,0.00019837,2]
[362382675,1748237447102,-500.0,0.0001988,2]
[362382676,1748237447111,-500.02958119,0.00019903,2]
[362382677,1748237447120,-1005.08011426,0.00019903,2]
[362382678,1748237447129,-379.00808083,0.00019934,2]
[362382679,1748237447139,-300.62150092,0.0002,2]
[362382680,1748237447148,-360.0,0.0002,7]
[362382681,1748237447158,-301.2663195,0.0002,2]
[362382682,1748237447168,-513.73874386,0.0002,2]
[362382683,1748237447177,-430.0,0.0002,2]
[362382684,1748237447186,-430.0,0.0002,2]
[362382685,1748237447196,-156.75092166,0.0002,2]
[362382686,1748237447205,-430.0,0.0002,2]
[362382687,1748237447215,-452.47637565,0.0002,2]
[362382688,1748237447224,-430.0,0.0002,2]
[362382689,1748237447234,-151.0,0.0002,2]
[362382690,1748237447243,-430.0,0.0002,2]
[362382691,1748237447252,-158.96,0.0002,2]
[362382692,1748237447262,-430.0,0.0002,2]
[362382693,1748237447271,-430.0,0.0002,2]
[362382694,1748237447280,-430.0,0.0002,2]
[362382695,1748237447289,-430.0,0.0002,2]
[362382696,1748237447300,-430.0,0.0002,2]
[362382697,1748237447309,-430.0,0.0002,2]
[362382698,1748237447318,-430.0,0.0002,2]
[362382699,1748237447328,-430.0,0.0002,2]
[362382700,1748237447337,-430.0,0.0002,2]
[362382701,1748237447347,-430.0,0.0002,2]
[362382702,1748237447356,-430.0,0.0002,2]
[362382703,1748237447367,-500.0,0.0002,2]
[362382704,1748237447376,-369.91648483,0.0002,2]
[362382705,1748237447385,-430.0,0.0002,2]
[362382706,1748237447394,-430.0,0.0002,2]
[362382707,1748237447403,-188.38431417,0.0002,2]
[362382708,1748237447412,-430.0,0.0002,2]
[362382709,1748237447421,-151.0,0.0002,2]
[362382710,1748237447431,-430.0,0.0002,2]
[362382711,1748237447441,-430.0,0.0002,2]
[362382712,1748237447450,-430.0,0.0002,2]
[362382713,1748237447459,-430.0,0.0002,2]
[362382714,1748237447468,-151.0,0.0002,2]
[362382715,1748237447477,-326.86944631,0.0002,2]
[362382716,1748237447486,-551.31334981,0.0002,2]
[362382717,1748237447495,-430.0,0.0002,2]
[362382718,1748237447506,-430.0,0.0002,2]
[362382719,1748237447515,-430.0,0.0002,2]
[362382720,1748237447525,-430.0,0.0002,2]
[362382721,1748237447535,-430.0,0.0002,2]
[362382722,1748237447544,-455.26542395,0.0002,2]
[362382723,1748237447554,-430.0,0.0002,2]
[362382724,1748237447563,-430.0,0.0002,2]
[362382725,1748237447573,-430.0,0.0002,2]
[362382726,1748237447583,-430.0,0.0002,2]
[362382727,1748237447592,-430.0,0.0002,2]
[362382728,1748237447601,-430.0,0.0002,2]
[362382729,1748237447611,-430.0,0.0002,2]
[362382730,1748237447621,-430.0,0.0002,2]
[362382731,1748237447630,-430.0,0.0002,2]
[362382732,1748237447640,-430.0,0.0002,2]
[362382733,1748237447649,-430.0,0.0002,2]
[362382734,1748237447659,-430.0,0.0002,2]
[362382735,1748237447669,-430.0,0.0002,2]
[362382736,1748237447678,-430.0,0.0002,2]
[362382737,1748237447688,-906.96,0.0002,2]
[362382738,1748237447698,-970.85,0.0002,2]